[Event "Early-Titled-Tuesday-Blitz-March-26-2024"]
[Site "Chess.com"]
[Date "2024.03.26"]
[Round "3"]
[White "lukazz029"]
[Black "KhazhatulyAlikhan"]
[Result "1-0"]
[WhiteElo "2012"]
[BlackElo "2450"]
[TimeControl "180+1"]
[EndTime "8:28:51 PDT"]
[Termination "lukazz029 won on time"]

1. e4 {[%clk 0:03:00.9]} 1... c5 {[%clk 0:02:57.3]} 2. Nf3 {[%clk 0:03:00.3]}
2... e6 {[%clk 0:02:57.8]} 3. d4 {[%clk 0:03:00.7]} 3... cxd4 {[%clk 0:02:58.7]}
4. Nxd4 {[%clk 0:03:01.2]} 4... a6 {[%clk 0:02:58.9]} 5. c4 {[%clk 0:02:58.2]}
5... Nf6 {[%clk 0:02:58.6]} 6. Nc3 {[%clk 0:02:57.7]} 6... Bb4 {[%clk
0:02:50.2]} 7. Bd3 {[%clk 0:02:56.2]} 7... Qc7 {[%clk 0:02:46.1]} 8. Nc2 {[%clk
0:02:51.5]} 8... Bd6 {[%clk 0:02:43.3]} 9. h3 {[%clk 0:02:27.7]} 9... Nc6 {[%clk
0:02:41.2]} 10. O-O {[%clk 0:02:27]} 10... h5 {[%clk 0:02:38.5]} 11. f4 {[%clk
0:02:25.2]} 11... Bc5+ {[%clk 0:02:36.6]} 12. Kh1 {[%clk 0:02:22]} 12... Ng4
{[%clk 0:02:25.9]} 13. Qe2 {[%clk 0:02:20.6]} 13... Qd8 {[%clk 0:01:57.6]} 14.
Bd2 {[%clk 0:02:02.8]} 14... d6 {[%clk 0:01:26.7]} 15. a3 {[%clk 0:01:58.7]}
15... Nd4 {[%clk 0:01:18.5]} 16. Nxd4 {[%clk 0:01:57.1]} 16... Bxd4 {[%clk
0:01:19.4]} 17. Rad1 {[%clk 0:01:49.6]} 17... Qh4 {[%clk 0:01:07.8]} 18. Be1
{[%clk 0:01:46.3]} 18... Qd8 {[%clk 0:01:04]} 19. Bd2 {[%clk 0:01:45.9]} 19...
Bd7 {[%clk 0:00:49.6]} 20. Bb1 {[%clk 0:01:25.6]} 20... Bc6 {[%clk 0:00:39]} 21.
Bc1 {[%clk 0:01:22.6]} 21... Ba7 {[%clk 0:00:20.8]} 22. Bd2 {[%clk 0:01:07.7]}
22... Rc8 {[%clk 0:00:16.4]} 23. Rf3 {[%clk 0:00:54.6]} 23... Qb6 {[%clk
0:00:12.8]} 24. Nd5 {[%clk 0:00:19.1]} 24... Bxd5 {[%clk 0:00:06.4]} 25. exd5
{[%clk 0:00:18.5]} 25... Nf2+ {[%clk 0:00:07]} 26. Kh2 {[%clk 0:00:15.3]} 26...
Nxd1 {[%clk 0:00:07.1]} 27. Qxd1 {[%clk 0:00:08.1]} 27... exd5 {[%clk
0:00:05.2]} 28. Qe2+ {[%clk 0:00:03]} 28... Kf8 {[%clk 0:00:04.5]} 29. Be3
{[%clk 0:00:03.7]} 29... d4 {[%clk 0:00:02.3]} 30. Bf2 {[%clk 0:00:04.3]} 30...
Re8 {[%clk 0:00:02.5]} 31. Qd2 {[%clk 0:00:03.5]} 31... Qc7 {[%clk 0:00:02]} 32.
Bd3 {[%clk 0:00:02.4]} 32... g6 {[%clk 0:00:02]} 33. b4 {[%clk 0:00:02.6]} 33...
Kg7 {[%clk 0:00:02.7]} 34. f5 {[%clk 0:00:03.2]} 34... f6 {[%clk 0:00:02.5]} 35.
fxg6 {[%clk 0:00:02.1]} 35... Bb8 {[%clk 0:00:02.5]} 36. Bh4 {[%clk 0:00:02.5]}
36... d5+ {[%clk 0:00:02.4]} 37. Bg3 {[%clk 0:00:03.1]} 37... Qe7 {[%clk
0:00:02.5]} 38. Bxb8 {[%clk 0:00:02.9]} 38... Rxb8 {[%clk 0:00:03.4]} 39. Qf4
{[%clk 0:00:03.1]} 39... Rbd8 {[%clk 0:00:02.7]} 40. Qxd4 {[%clk 0:00:02.9]}
40... dxc4 {[%clk 0:00:02.7]} 41. Qxc4 {[%clk 0:00:03]} 41... Qe5+ {[%clk
0:00:02.4]} 42. Kg1 {[%clk 0:00:03.3]} 42... Rc8 {[%clk 0:00:02.6]} 43. Qf4
{[%clk 0:00:02.1]} 43... Qxf4 {[%clk 0:00:01.2]} 44. Rxf4 {[%clk 0:00:03]} 44...
Rc3 {[%clk 0:00:01.3]} 45. Be2 {[%clk 0:00:02.4]} 45... Rxa3 {[%clk 0:00:01.3]}
46. Rc4 {[%clk 0:00:02.2]} 1-0

[Event "Early-Titled-Tuesday-Blitz-March-26-2024"]
[Site "Chess.com"]
[Date "2024.03.26"]
[Round "3"]
[White "Aleksandar-Topalov"]
[Black "Hope_6"]
[Result "1-0"]
[WhiteElo "2339"]
[BlackElo "2684"]
[TimeControl "180+1"]
[EndTime "8:28:54 PDT"]
[Termination "Aleksandar-Topalov won by checkmate"]

1. b3 {[%clk 0:02:35.6]} 1... d5 {[%clk 0:02:54]} 2. Bb2 {[%clk 0:02:35.1]} 2...
e6 {[%clk 0:02:52.4]} 3. Nf3 {[%clk 0:02:35]} 3... Nf6 {[%clk 0:02:52.2]} 4. e3
{[%clk 0:02:35]} 4... Bd6 {[%clk 0:02:49.1]} 5. d4 {[%clk 0:02:35.1]} 5... O-O
{[%clk 0:02:48.3]} 6. Nbd2 {[%clk 0:02:35.1]} 6... c6 {[%clk 0:02:44.9]} 7. Bd3
{[%clk 0:02:34.9]} 7... Nbd7 {[%clk 0:02:44.2]} 8. O-O {[%clk 0:02:34.1]} 8...
Qc7 {[%clk 0:02:38.2]} 9. c4 {[%clk 0:02:33]} 9... Re8 {[%clk 0:02:27.6]} 10.
Rc1 {[%clk 0:02:31.6]} 10... Nf8 {[%clk 0:02:21.4]} 11. Re1 {[%clk 0:02:22.8]}
11... Ng6 {[%clk 0:02:15.3]} 12. e4 {[%clk 0:02:20.5]} 12... dxe4 {[%clk
0:02:12.1]} 13. Nxe4 {[%clk 0:02:20.4]} 13... Nxe4 {[%clk 0:02:09.1]} 14. Bxe4
{[%clk 0:02:20.5]} 14... Bf4 {[%clk 0:02:08.4]} 15. Rc2 {[%clk 0:02:17.7]} 15...
b6 {[%clk 0:01:51.6]} 16. d5 {[%clk 0:01:56.9]} 16... Bb7 {[%clk 0:01:41.7]} 17.
Bxg6 {[%clk 0:01:41.8]} 17... hxg6 {[%clk 0:01:38.6]} 18. Qd4 {[%clk 0:01:38.7]}
18... e5 {[%clk 0:00:58.7]} 19. Nxe5 {[%clk 0:01:35]} 19... Bxe5 {[%clk
0:00:38.8]} 20. Rxe5 {[%clk 0:01:33.8]} 20... f6 {[%clk 0:00:27.2]} 21. Ree2
{[%clk 0:01:16.3]} 21... cxd5 {[%clk 0:00:21]} 22. f3 {[%clk 0:00:49.6]} 22...
dxc4 {[%clk 0:00:17.1]} 23. Rxc4 {[%clk 0:00:44.4]} 23... Qf7 {[%clk 0:00:12.6]}
24. Rcc2 {[%clk 0:00:37.6]} 24... Rad8 {[%clk 0:00:11.7]} 25. Qa4 {[%clk
0:00:36]} 25... Rd1+ {[%clk 0:00:10.4]} 26. Kf2 {[%clk 0:00:34.6]} 26... Red8
{[%clk 0:00:10.8]} 27. Qxa7 {[%clk 0:00:30.1]} 27... R8d7 {[%clk 0:00:09.1]} 28.
Qxb6 {[%clk 0:00:29.3]} 28... Kh7 {[%clk 0:00:06.7]} 29. Qb4 {[%clk 0:00:21.9]}
29... g5 {[%clk 0:00:06.2]} 30. Rcd2 {[%clk 0:00:18]} 30... R1xd2 {[%clk
0:00:05.7]} 31. Rxd2 {[%clk 0:00:18.2]} 31... Re7 {[%clk 0:00:06]} 32. Re2
{[%clk 0:00:17.2]} 32... Rd7 {[%clk 0:00:05]} 33. Rd2 {[%clk 0:00:16.9]} 33...
Re7 {[%clk 0:00:05]} 34. Qc3 {[%clk 0:00:16.9]} 34... Qg6 {[%clk 0:00:04.5]} 35.
Qd3 {[%clk 0:00:16.7]} 35... f5 {[%clk 0:00:03.9]} 36. Qd6 {[%clk 0:00:16]}
36... Qxd6 {[%clk 0:00:02.9]} 37. Rxd6 {[%clk 0:00:15.8]} 37... Bc8 {[%clk
0:00:03.2]} 38. Bd4 {[%clk 0:00:13.4]} 38... Rc7 {[%clk 0:00:03.7]} 39. Be3
{[%clk 0:00:11.1]} 39... Rc2+ {[%clk 0:00:04]} 40. Rd2 {[%clk 0:00:10.4]} 40...
Rc1 {[%clk 0:00:04.1]} 41. Bxg5 {[%clk 0:00:10.2]} 41... Ra1 {[%clk 0:00:03.6]}
42. h4 {[%clk 0:00:10.1]} 42... Kg6 {[%clk 0:00:04.1]} 43. a4 {[%clk 0:00:08.5]}
43... Ba6 {[%clk 0:00:04.5]} 44. Rb2 {[%clk 0:00:07.6]} 44... Rf1+ {[%clk
0:00:03.4]} 45. Kg3 {[%clk 0:00:07.8]} 45... Rg1 {[%clk 0:00:03.6]} 46. b4
{[%clk 0:00:07.4]} 46... Ra1 {[%clk 0:00:04.3]} 47. b5 {[%clk 0:00:07.4]} 47...
Bb7 {[%clk 0:00:04.4]} 48. Rb4 {[%clk 0:00:07]} 48... Kh5 {[%clk 0:00:04.2]} 49.
Kf4 {[%clk 0:00:05.3]} 49... g6 {[%clk 0:00:04.5]} 50. g4+ {[%clk 0:00:05.4]}
50... fxg4 {[%clk 0:00:04.3]} 51. fxg4# {[%clk 0:00:05.9]} 1-0

[Event "Early-Titled-Tuesday-Blitz-March-26-2024"]
[Site "Chess.com"]
[Date "2024.03.26"]
[Round "3"]
[White "stasOR4ik"]
[Black "PepeCuenca"]
[Result "1/2-1/2"]
[WhiteElo "2432"]
[BlackElo "2743"]
[TimeControl "180+1"]
[EndTime "8:28:57 PDT"]
[Termination "Game drawn - insufficient material"]

1. e4 {[%clk 0:03:00.9]} 1... c5 {[%clk 0:03:00.3]} 2. c3 {[%clk 0:03:00.6]}
2... Nf6 {[%clk 0:03:00.3]} 3. e5 {[%clk 0:03:00.8]} 3... Nd5 {[%clk 0:03:01]}
4. d4 {[%clk 0:03:01.1]} 4... cxd4 {[%clk 0:03:01.9]} 5. Nf3 {[%clk 0:03:01.4]}
5... Nc6 {[%clk 0:03:02.1]} 6. Bc4 {[%clk 0:02:59.9]} 6... Nb6 {[%clk
0:02:58.4]} 7. Bb3 {[%clk 0:03:00.2]} 7... d5 {[%clk 0:02:50.7]} 8. exd6 {[%clk
0:02:53.4]} 8... Qxd6 {[%clk 0:02:47.6]} 9. Nxd4 {[%clk 0:02:39.4]} 9... Nxd4
{[%clk 0:02:45.8]} 10. Qxd4 {[%clk 0:02:39.5]} 10... Qxd4 {[%clk 0:02:43.8]} 11.
cxd4 {[%clk 0:02:40.4]} 11... e6 {[%clk 0:02:04]} 12. Nc3 {[%clk 0:02:39.8]}
12... Bd6 {[%clk 0:01:58.8]} 13. Be3 {[%clk 0:02:19.9]} 13... O-O {[%clk
0:01:54.3]} 14. O-O {[%clk 0:02:04.6]} 14... Bd7 {[%clk 0:01:53.2]} 15. d5
{[%clk 0:01:59.5]} 15... Rfe8 {[%clk 0:01:29.8]} 16. Rfd1 {[%clk 0:01:52.4]}
16... Bb4 {[%clk 0:01:10.1]} 17. Bxb6 {[%clk 0:01:24.2]} 17... axb6 {[%clk
0:01:09]} 18. dxe6 {[%clk 0:01:24.6]} 18... Bxe6 {[%clk 0:01:08.4]} 19. Nd5
{[%clk 0:01:24.7]} 19... Bxd5 {[%clk 0:00:57.6]} 20. Rxd5 {[%clk 0:01:25.6]}
20... Re7 {[%clk 0:00:50.4]} 21. Rad1 {[%clk 0:01:22.5]} 21... g6 {[%clk
0:00:42.7]} 22. g3 {[%clk 0:01:17]} 22... Bc5 {[%clk 0:00:38.5]} 23. Rd7 {[%clk
0:01:15.8]} 23... Rae8 {[%clk 0:00:35.4]} 24. Bc4 {[%clk 0:01:13.1]} 24... Kg7
{[%clk 0:00:34.2]} 25. Kg2 {[%clk 0:01:10.1]} 25... h5 {[%clk 0:00:33]} 26. h4
{[%clk 0:01:09.2]} 26... Kf6 {[%clk 0:00:24.5]} 27. R1d3 {[%clk 0:00:59.6]}
27... Kg7 {[%clk 0:00:23.1]} 28. b3 {[%clk 0:00:56.6]} 28... Rxd7 {[%clk
0:00:21.2]} 29. Rxd7 {[%clk 0:00:56.3]} 29... Re7 {[%clk 0:00:22.1]} 30. Rxe7
{[%clk 0:00:50.9]} 30... Bxe7 {[%clk 0:00:23]} 31. Bd5 {[%clk 0:00:50.9]} 31...
Ba3 {[%clk 0:00:22.6]} 32. Bxb7 {[%clk 0:00:50.9]} 32... Kf6 {[%clk 0:00:23.1]}
33. Kf3 {[%clk 0:00:50.6]} 33... Bc5 {[%clk 0:00:20.1]} 34. Bd5 {[%clk
0:00:49.7]} 34... Ke7 {[%clk 0:00:20.1]} 35. Ke2 {[%clk 0:00:44.5]} 35... Kf6
{[%clk 0:00:20.4]} 36. f3 {[%clk 0:00:41]} 36... Bd6 {[%clk 0:00:18.6]} 37. Kf2
{[%clk 0:00:40.8]} 37... Bc5+ {[%clk 0:00:18.7]} 38. Kg2 {[%clk 0:00:41.4]}
38... Kg7 {[%clk 0:00:16.5]} 39. Kh3 {[%clk 0:00:40.8]} 39... f5 {[%clk
0:00:14.9]} 40. Be6 {[%clk 0:00:27.6]} 40... Kf6 {[%clk 0:00:14.4]} 41. Bc8
{[%clk 0:00:27.8]} 41... Ba3 {[%clk 0:00:11.1]} 42. Kg2 {[%clk 0:00:21.7]} 42...
Ke5 {[%clk 0:00:09.3]} 43. Bd7 {[%clk 0:00:18.5]} 43... Kf6 {[%clk 0:00:07.7]}
44. Kf1 {[%clk 0:00:18.5]} 44... Bb4 {[%clk 0:00:06.7]} 45. Ke2 {[%clk
0:00:18.6]} 45... Bd6 {[%clk 0:00:06.2]} 46. g4 {[%clk 0:00:18.3]} 46... fxg4
{[%clk 0:00:04.3]} 47. fxg4 {[%clk 0:00:19.2]} 47... hxg4 {[%clk 0:00:04.9]} 48.
Bxg4 {[%clk 0:00:19.3]} 48... Bg3 {[%clk 0:00:05.3]} 49. h5 {[%clk 0:00:19.4]}
49... gxh5 {[%clk 0:00:06.2]} 50. Bxh5 {[%clk 0:00:19.6]} 50... Bd6 {[%clk
0:00:06.6]} 51. Kd3 {[%clk 0:00:19.8]} 51... Ke7 {[%clk 0:00:07.1]} 52. Kc4
{[%clk 0:00:20.3]} 52... Kd7 {[%clk 0:00:07.5]} 53. Kb5 {[%clk 0:00:20.6]} 53...
Kc7 {[%clk 0:00:08.1]} 54. Bf3 {[%clk 0:00:21.1]} 54... Ba3 {[%clk 0:00:07.6]}
55. b4 {[%clk 0:00:21]} 55... Bc1 {[%clk 0:00:05]} 56. a4 {[%clk 0:00:20.1]}
56... Bd2 {[%clk 0:00:05.4]} 57. Be4 {[%clk 0:00:16.2]} 57... Be1 {[%clk
0:00:04.3]} 58. a5 {[%clk 0:00:16.4]} 58... bxa5 {[%clk 0:00:04.6]} 59. bxa5
{[%clk 0:00:17.3]} 59... Bxa5 {[%clk 0:00:04.9]} 1/2-1/2

[Event "Early-Titled-Tuesday-Blitz-March-26-2024"]
[Site "Chess.com"]
[Date "2024.03.26"]
[Round "3"]
[White "IshviAggarwal"]
[Black "JoliyRoger"]
[Result "0-1"]
[WhiteElo "2181"]
[BlackElo "2418"]
[TimeControl "180+1"]
[EndTime "8:28:57 PDT"]
[Termination "JoliyRoger won by checkmate"]

1. Nf3 {[%clk 0:03:00.9]} 1... Nf6 {[%clk 0:02:58.5]} 2. g3 {[%clk 0:03:00.9]}
2... c5 {[%clk 0:02:58.7]} 3. Bg2 {[%clk 0:03:01.4]} 3... Nc6 {[%clk 0:02:59.5]}
4. O-O {[%clk 0:03:01.9]} 4... e5 {[%clk 0:03:00.2]} 5. c4 {[%clk 0:03:00.8]}
5... Be7 {[%clk 0:02:57]} 6. d3 {[%clk 0:03:00.7]} 6... O-O {[%clk 0:02:57.3]}
7. b3 {[%clk 0:03:00.3]} 7... d5 {[%clk 0:02:57.3]} 8. cxd5 {[%clk 0:02:57.6]}
8... Nxd5 {[%clk 0:02:58.2]} 9. Bb2 {[%clk 0:02:57.4]} 9... f6 {[%clk
0:02:58.4]} 10. Nbd2 {[%clk 0:02:54.3]} 10... Be6 {[%clk 0:02:57.9]} 11. Rc1
{[%clk 0:02:54.2]} 11... Rc8 {[%clk 0:02:57]} 12. Ne1 {[%clk 0:02:14]} 12... b6
{[%clk 0:02:54.4]} 13. Nc2 {[%clk 0:02:10.4]} 13... Qd7 {[%clk 0:02:50.2]} 14.
Nc4 {[%clk 0:02:06.4]} 14... Rfd8 {[%clk 0:02:50.1]} 15. N2e3 {[%clk 0:02:06.9]}
15... Nc7 {[%clk 0:02:41.8]} 16. Qc2 {[%clk 0:02:05.5]} 16... Kh8 {[%clk
0:02:38.1]} 17. f4 {[%clk 0:01:59.7]} 17... exf4 {[%clk 0:02:33.7]} 18. Rxf4
{[%clk 0:01:58]} 18... Nb5 {[%clk 0:02:32.1]} 19. Rcf1 {[%clk 0:01:41.1]} 19...
Nbd4 {[%clk 0:02:32.4]} 20. Qd2 {[%clk 0:01:35.2]} 20... b5 {[%clk 0:02:26.2]}
21. Na3 {[%clk 0:01:06.9]} 21... Nb4 {[%clk 0:02:15.7]} 22. Bxd4 {[%clk
0:00:48.6]} 22... cxd4 {[%clk 0:02:15.2]} 23. Nf5 {[%clk 0:00:48.9]} 23... Bf8
{[%clk 0:01:59.7]} 24. Nxd4 {[%clk 0:00:33.4]} 24... Bc5 {[%clk 0:01:52.4]} 25.
Kh1 {[%clk 0:00:29.4]} 25... Bxd4 {[%clk 0:01:48]} 26. Qxb4 {[%clk 0:00:28.8]}
26... Bc5 {[%clk 0:01:45.6]} 27. Qa5 {[%clk 0:00:20.6]} 27... Rb8 {[%clk
0:01:17.6]} 28. Nc2 {[%clk 0:00:10.9]} 28... Rdc8 {[%clk 0:00:55.9]} 29. Qd2
{[%clk 0:00:11]} 29... Qc7 {[%clk 0:00:38.5]} 30. Ne3 {[%clk 0:00:04.1]} 30...
Bd6 {[%clk 0:00:29.1]} 31. d4 {[%clk 0:00:04]} 31... h6 {[%clk 0:00:21.7]} 32.
R4f2 {[%clk 0:00:02.7]} 32... a5 {[%clk 0:00:19.7]} 33. Nf5 {[%clk 0:00:03.2]}
33... Bb4 {[%clk 0:00:18.7]} 34. Qd3 {[%clk 0:00:03]} 34... Qc2 {[%clk
0:00:16.7]} 35. d5 {[%clk 0:00:02.9]} 35... Bd7 {[%clk 0:00:12.1]} 36. Qxc2
{[%clk 0:00:01.9]} 36... Rxc2 {[%clk 0:00:12.8]} 37. Nh4 {[%clk 0:00:02.1]}
37... Rxa2 {[%clk 0:00:11.2]} 38. Be4 {[%clk 0:00:02.7]} 38... Kg8 {[%clk
0:00:11.5]} 39. Ng6 {[%clk 0:00:03]} 39... Re8 {[%clk 0:00:11.4]} 40. Bf5 {[%clk
0:00:03.4]} 40... Bxf5 {[%clk 0:00:11.3]} 41. Rxf5 {[%clk 0:00:04.3]} 41...
Raxe2 {[%clk 0:00:11]} 42. Nf4 {[%clk 0:00:04.9]} 42... R2e3 {[%clk 0:00:10.7]}
43. Ne6 {[%clk 0:00:04.3]} 43... Bd6 {[%clk 0:00:10.9]} 44. R5f4 {[%clk
0:00:03.5]} 44... Re5 {[%clk 0:00:10.5]} 45. Rg4 {[%clk 0:00:03.8]} 45... g5
{[%clk 0:00:09.7]} 46. Nc7 {[%clk 0:00:03.3]} 46... Bxc7 {[%clk 0:00:08.9]} 47.
Rc1 {[%clk 0:00:04]} 47... Bd6 {[%clk 0:00:09]} 48. Rc6 {[%clk 0:00:04.3]} 48...
Rxd5 {[%clk 0:00:09.5]} 49. h4 {[%clk 0:00:03.1]} 49... Re1+ {[%clk 0:00:08.8]}
50. Kg2 {[%clk 0:00:03.8]} 50... Rd2+ {[%clk 0:00:09.2]} 51. Kh3 {[%clk
0:00:04.6]} 51... Rh1# {[%clk 0:00:09]} 0-1

[Event "Early-Titled-Tuesday-Blitz-March-26-2024"]
[Site "Chess.com"]
[Date "2024.03.26"]
[Round "3"]
[White "Oleksandr_Bortnyk"]
[Black "Elegance_Riks"]
[Result "1-0"]
[WhiteElo "3083"]
[BlackElo "2799"]
[TimeControl "180+1"]
[EndTime "8:28:59 PDT"]
[Termination "Oleksandr_Bortnyk won by resignation"]

1. e4 {[%clk 0:03:00.9]} 1... e6 {[%clk 0:02:59.8]} 2. Nf3 {[%clk 0:02:58.4]}
2... d5 {[%clk 0:02:59.9]} 3. e5 {[%clk 0:02:59.3]} 3... c5 {[%clk 0:02:59.7]}
4. d4 {[%clk 0:03:00.1]} 4... Nc6 {[%clk 0:02:59.7]} 5. Bd3 {[%clk 0:03:00.4]}
5... Bd7 {[%clk 0:02:57.3]} 6. O-O {[%clk 0:03:00.8]} 6... Qb6 {[%clk
0:02:56.9]} 7. a4 {[%clk 0:02:58.6]} 7... a6 {[%clk 0:02:34.9]} 8. Re1 {[%clk
0:02:50.7]} 8... h6 {[%clk 0:02:30.5]} 9. Nc3 {[%clk 0:02:45.2]} 9... c4 {[%clk
0:02:17]} 10. Bf1 {[%clk 0:02:39.9]} 10... Bb4 {[%clk 0:02:17]} 11. Bd2 {[%clk
0:02:34.3]} 11... Nge7 {[%clk 0:02:16.6]} 12. Ne2 {[%clk 0:02:33.3]} 12... Bxd2
{[%clk 0:02:14.1]} 13. Qxd2 {[%clk 0:02:34.2]} 13... Nf5 {[%clk 0:01:55.6]} 14.
a5 {[%clk 0:02:32.1]} 14... Qb4 {[%clk 0:01:51.8]} 15. c3 {[%clk 0:02:31.2]}
15... Qb5 {[%clk 0:01:51.9]} 16. g4 {[%clk 0:02:29.4]} 16... Nfe7 {[%clk
0:01:51.2]} 17. b4 {[%clk 0:02:24.3]} 17... Na7 {[%clk 0:01:31.7]} 18. Ng3
{[%clk 0:02:18.4]} 18... O-O-O {[%clk 0:01:30.8]} 19. Nh5 {[%clk 0:02:17]} 19...
Rdg8 {[%clk 0:01:31]} 20. Be2 {[%clk 0:02:16.3]} 20... Qc6 {[%clk 0:01:30.6]}
21. Bd1 {[%clk 0:02:11.8]} 21... Qc7 {[%clk 0:01:30]} 22. Bc2 {[%clk 0:02:11.1]}
22... Kb8 {[%clk 0:01:28.4]} 23. Kh1 {[%clk 0:02:06.6]} 23... Ka8 {[%clk
0:01:28]} 24. Rg1 {[%clk 0:02:06.6]} 24... Be8 {[%clk 0:01:19.8]} 25. Rae1
{[%clk 0:02:04.9]} 25... Nec6 {[%clk 0:01:16]} 26. Rg3 {[%clk 0:02:02.1]} 26...
Nb8 {[%clk 0:01:15]} 27. Reg1 {[%clk 0:01:50.7]} 27... Nd7 {[%clk 0:01:02.1]}
28. Qe3 {[%clk 0:01:36.1]} 28... g6 {[%clk 0:01:00.7]} 29. Nf6 {[%clk
0:01:26.3]} 29... Nxf6 {[%clk 0:01:00.7]} 30. exf6 {[%clk 0:01:27.2]} 30... Bb5
{[%clk 0:00:55.5]} 31. Rh3 {[%clk 0:01:08.8]} 31... Qd8 {[%clk 0:00:54.8]} 32.
Ne5 {[%clk 0:01:01.4]} 32... Be8 {[%clk 0:00:54.6]} 33. Rf3 {[%clk 0:00:41.7]}
33... Nc6 {[%clk 0:00:53]} 34. h4 {[%clk 0:00:19.5]} 34... Nxe5 {[%clk
0:00:51.6]} 35. Qxe5 {[%clk 0:00:20.4]} 35... Qb8 {[%clk 0:00:42.5]} 36. Qe3
{[%clk 0:00:16.1]} 36... Bd7 {[%clk 0:00:38]} 37. Kg2 {[%clk 0:00:15.4]} 37...
Qd6 {[%clk 0:00:35.7]} 38. Kf1 {[%clk 0:00:14.7]} 38... Re8 {[%clk 0:00:35.9]}
39. Qe5 {[%clk 0:00:09.4]} 39... Qxe5 {[%clk 0:00:35.8]} 40. dxe5 {[%clk
0:00:10.3]} 40... Kb8 {[%clk 0:00:36]} 41. Ke2 {[%clk 0:00:10.3]} 41... Bc6
{[%clk 0:00:35.3]} 42. Rh3 {[%clk 0:00:08.4]} 42... Rd8 {[%clk 0:00:35.4]} 43.
Ke3 {[%clk 0:00:09.1]} 43... Kc7 {[%clk 0:00:33.6]} 44. Kd4 {[%clk 0:00:09.8]}
44... Bb5 {[%clk 0:00:28.6]} 45. f4 {[%clk 0:00:10.2]} 45... Bd7 {[%clk
0:00:26.3]} 46. h5 {[%clk 0:00:07.8]} 46... g5 {[%clk 0:00:18.6]} 47. fxg5
{[%clk 0:00:06.3]} 47... hxg5 {[%clk 0:00:19]} 48. h6 {[%clk 0:00:07.2]} 48...
b6 {[%clk 0:00:12.6]} 49. axb6+ {[%clk 0:00:06.4]} 49... Kxb6 {[%clk 0:00:13.5]}
50. h7 {[%clk 0:00:07.2]} 50... a5 {[%clk 0:00:11.1]} 51. bxa5+ {[%clk
0:00:08.1]} 51... Kxa5 {[%clk 0:00:12]} 52. Rh5 {[%clk 0:00:07.6]} 52... Rb8
{[%clk 0:00:10.7]} 53. Ra1+ {[%clk 0:00:07.8]} 53... Kb6 {[%clk 0:00:10.8]} 54.
Rxg5 {[%clk 0:00:08.7]} 54... Kc7 {[%clk 0:00:09.3]} 55. Ra7+ {[%clk 0:00:08.1]}
55... Kc6 {[%clk 0:00:09.1]} 56. Ba4+ {[%clk 0:00:07.6]} 1-0

[Event "Early-Titled-Tuesday-Blitz-March-26-2024"]
[Site "Chess.com"]
[Date "2024.03.26"]
[Round "3"]
[White "Szparu"]
[Black "mishanick"]
[Result "0-1"]
[WhiteElo "2808"]
[BlackElo "3103"]
[TimeControl "180+1"]
[EndTime "8:29:01 PDT"]
[Termination "mishanick won by checkmate"]

1. Nf3 {[%clk 0:03:00.9]} 1... d5 {[%clk 0:02:59.9]} 2. d4 {[%clk 0:03:00.5]}
2... Nf6 {[%clk 0:03:00]} 3. c4 {[%clk 0:03:00.2]} 3... e6 {[%clk 0:03:00.5]} 4.
g3 {[%clk 0:03:00.5]} 4... Bb4+ {[%clk 0:03:00.1]} 5. Nc3 {[%clk 0:03:00.5]}
5... dxc4 {[%clk 0:02:59.4]} 6. Bg2 {[%clk 0:03:00.7]} 6... O-O {[%clk
0:02:59.9]} 7. O-O {[%clk 0:03:00.5]} 7... Nc6 {[%clk 0:03:00.6]} 8. Re1 {[%clk
0:02:58.7]} 8... Re8 {[%clk 0:02:31.2]} 9. e4 {[%clk 0:02:58.8]} 9... e5 {[%clk
0:02:30.3]} 10. d5 {[%clk 0:02:46.9]} 10... Na5 {[%clk 0:02:29.4]} 11. Qa4
{[%clk 0:02:29.4]} 11... c5 {[%clk 0:01:18.9]} 12. Bg5 {[%clk 0:02:05.9]} 12...
Bd7 {[%clk 0:00:51.8]} 13. Bxf6 {[%clk 0:02:04]} 13... Bxa4 {[%clk 0:00:46]} 14.
Bxd8 {[%clk 0:02:04]} 14... Bxc3 {[%clk 0:00:46.6]} 15. Bxa5 {[%clk 0:02:04.1]}
15... Bxa5 {[%clk 0:00:46.6]} 16. Rec1 {[%clk 0:02:04.3]} 16... Bb5 {[%clk
0:00:42.5]} 17. Bf1 {[%clk 0:02:04]} 17... Rac8 {[%clk 0:00:40.3]} 18. a4 {[%clk
0:02:02.5]} 18... Bd7 {[%clk 0:00:40]} 19. Bxc4 {[%clk 0:01:56.8]} 19... g6
{[%clk 0:00:40.5]} 20. Ne1 {[%clk 0:01:29.2]} 20... a6 {[%clk 0:00:37.5]} 21.
Nc2 {[%clk 0:01:17]} 21... Kg7 {[%clk 0:00:36.2]} 22. Ne3 {[%clk 0:01:13.7]}
22... f5 {[%clk 0:00:35]} 23. d6 {[%clk 0:01:00.8]} 23... Bd2 {[%clk 0:00:29.9]}
24. Rd1 {[%clk 0:01:00.4]} 24... Bxe3 {[%clk 0:00:22.3]} 25. fxe3 {[%clk
0:01:01.3]} 25... Rcd8 {[%clk 0:00:20]} 26. exf5 {[%clk 0:00:54]} 26... gxf5
{[%clk 0:00:17]} 27. Rd2 {[%clk 0:00:42.7]} 27... Bc6 {[%clk 0:00:16.8]} 28. a5
{[%clk 0:00:35]} 28... Kf6 {[%clk 0:00:13.3]} 29. Rf1 {[%clk 0:00:34]} 29... e4
{[%clk 0:00:13]} 30. g4 {[%clk 0:00:34.2]} 30... Re5 {[%clk 0:00:13.1]} 31.
Rxf5+ {[%clk 0:00:28.1]} 31... Rxf5 {[%clk 0:00:13.4]} 32. gxf5 {[%clk 0:00:29]}
32... Kxf5 {[%clk 0:00:12.9]} 33. Bd5 {[%clk 0:00:29.3]} 33... Bxd5 {[%clk
0:00:05.9]} 34. Rxd5+ {[%clk 0:00:29.7]} 34... Ke6 {[%clk 0:00:06.7]} 35. Rxc5
{[%clk 0:00:27.5]} 35... Rxd6 {[%clk 0:00:07.4]} 36. Rc7 {[%clk 0:00:15.9]}
36... Rd1+ {[%clk 0:00:04.5]} 37. Kg2 {[%clk 0:00:16.3]} 37... Rd2+ {[%clk
0:00:04]} 38. Kg3 {[%clk 0:00:16.9]} 38... Rxb2 {[%clk 0:00:04.6]} 39. Rxh7
{[%clk 0:00:17.2]} 39... Rb5 {[%clk 0:00:05.1]} 40. Kf4 {[%clk 0:00:16.7]} 40...
Kd5 {[%clk 0:00:05.2]} 41. Rh5+ {[%clk 0:00:16.2]} 41... Kc4 {[%clk 0:00:05.6]}
42. Rh7 {[%clk 0:00:12.1]} 42... Kb4 {[%clk 0:00:06]} 43. h4 {[%clk 0:00:08.6]}
43... Kxa5 {[%clk 0:00:06.7]} 44. h5 {[%clk 0:00:09.2]} 44... Rb1 {[%clk
0:00:07.5]} 45. Rg7 {[%clk 0:00:06.6]} 45... b5 {[%clk 0:00:05.6]} 46. Rg6
{[%clk 0:00:04.5]} 46... Rh1 {[%clk 0:00:05.5]} 47. h6 {[%clk 0:00:04.8]} 47...
b4 {[%clk 0:00:05.9]} 48. Kxe4 {[%clk 0:00:04.3]} 48... Kb5 {[%clk 0:00:06.2]}
49. Kd3 {[%clk 0:00:04.1]} 49... a5 {[%clk 0:00:06.4]} 50. Kc2 {[%clk
0:00:02.3]} 50... Rh2+ {[%clk 0:00:06.1]} 51. Kb1 {[%clk 0:00:02.1]} 51... a4
{[%clk 0:00:06.5]} 52. e4 {[%clk 0:00:01.5]} 52... a3 {[%clk 0:00:06.9]} 53. e5
{[%clk 0:00:02]} 53... b3 {[%clk 0:00:07.5]} 54. e6 {[%clk 0:00:01.8]} 54...
Rh1+ {[%clk 0:00:07.5]} 55. Rg1 {[%clk 0:00:02.2]} 55... Rxg1# {[%clk
0:00:08.1]} 0-1